Cogmind - Beta 9.4 @@@ ROGUE MODE // 2020.01.19 @ 16:05:19 // Winter2019/RPGLIKE Player: Cookie Result: Destroyed by as-48953 with Assembled Heavy Rifle Performance ------------- Evolutions (0) 0 Regions Visited (2) 400 Robots Destroyed (13) 65 Value Destroyed (182) 182 Prototype IDs (0) 0 Alien Tech Used (0) 0 Bonus (0) 0 TOTAL SCORE: 647 Bonus ------- None Cogmind --------- Core Integrity 0/700 Matter 214/400 Energy 400/400 System Corruption 0% Temperature Cool (53) Movement Rolling (80) Location -10/Mines Parts ------- > --- POWER (2) -------- Ion Engine Ion Engine > --- PROPULSION (2) --- Wheel Wheel > --- UTILITY (2) ------ Medium Matter Pod Targeting Computer > --- WEAPON (3) ------- Medium Laser Assault Rifle Light Cannon > --- INVENTORY (0) ---- (None) Peak State ------------ > --- POWER ------------ Ion Engine Ion Engine > --- PROPULSION ------- Wheel Wheel > --- UTILITY ---------- Medium Matter Pod Targeting Computer > --- WEAPON ----------- Medium Laser Assault Rifle Light Cannon > --- INVENTORY -------- (None) [Rating: 9] Favorites ----------- Power Ion Engine Engine Ion Engine Propulsion Wheel Wheel Wheel Utility Targeting Computer Storage Medium Matter Pod Processor Targeting Computer Weapon Assault Rifle Energy Gun Medium Laser Ballistic Gun Assault Rifle Ballistic Cannon Light Cannon Build | -11 -10 -10 ------- Run | Scr Mat Min Slots Evolved 5 | 5 . . Power 1 | 1 . . Propulsion 1 | 1 . . Utility 1 | 1 . . Weapon 2 | 2 . . Parts Attached 16 | 8 7 1 Power 5 | 2 3 . Engine 5 | 2 3 . Core . | . . . Reactor . | . . . Propulsion 5 | 3 1 1 Treads . | . . . Leg . | . . . Wheel 5 | 3 1 1 Hover . | . . . Flight . | . . . Utility 2 | . 2 . Device . | . . . Storage 1 | . 1 . Processor 1 | . 1 . Hackware . | . . . Protection . | . . . Artifact . | . . . Weapon 4 | 3 1 . Energy Gun 1 | 1 . . Energy Cannon . | . . . Ballistic Gun 2 | 2 . . Ballistic Cannon 1 | . 1 . Launcher . | . . . Special Weapon . | . . . Impact Weapon . | . . . Slashing Weapon . | . . . Piercing Weapon . | . . . Special Melee Weapon . | . . . Unidentified Prototypes . | . . . Parts Lost . | . . . Power . | . . . Propulsion . | . . . Utility . | . . . Weapon . | . . . Highest Loss Streak . | . . . Average Slot Usage (%) 92 | . 86 100 Engine 21 | . 21 22 Wheel 22 | . 22 22 Storage 4 | . . 11 Processor 10 | . 10 11 Energy Gun 11 | . 11 11 Ballistic Gun 16 | . 20 11 Ballistic Cannon 5 | . 1 11 Naked Turns . | . . . Heaviest Build 19 | 11 19 19 Greatest Support 26 | 26 20 20 Greatest Overweight (x) . | . . . Average Overweight (x) . | . . . Largest Inventory Capacity . | . . . Average Capacity . | . . . Most Carried . | . . . Average Carried . | . . . Final Capacity . | . . . Final Carried . | . . . Class Distribution -------------------- 84% | Gunner 15% | Scavenger-Gunner Dominant Class ---------------- Gunner | -10/Materials Gunner | -10/Mines Resources | -11 -10 -10 ----------- Run | Scr Mat Min Matter Collected 444 | 292 68 84 Remotely . | . . . Salvage Created 212 | 77 68 67 Parts 15 | 3 7 5 Haulers Intercepted . | . . . Recyclers Shooed 1 | . . 1 Parts Field Recycled . | . . . Retrieved Matter . | . . . Parts Self-Destructed . | . . . Prevented . | . . . Kills | -11 -10 -10 ------- Run | Scr Mat Min Combat Hostiles Destroyed 9 | . 3 6 Guns 8 | . 3 5 Cannons 1 | . . 1 Classes Destroyed 7 | 2 3 2 Worker 1 | . 1 . Tunneler 1 | 1 . . Recycler 1 | 1 . . Operator 1 | . 1 . Swarmer 3 | . . 3 Grunt 3 | . 3 . Assembled 3 | . . 3 Best Kill Streak 3 | 2 2 3 Combat Bots Only 3 | . 2 3 Max Kills in Single Turn 1 | 1 1 1 Gunslinging . | . . . Exploded . | . . . Melee . | . . . Uniques/NPCs Destroyed . | . . . Combat | -11 -10 -10 -------- Run | Scr Mat Min Damage Taken 935 | . 77 858 Core 779 | . 61 718 Absorbed by Shields . | . . . Redirected to Core 542 | . 49 493 Core Remaining (%) 100 | 100 . . Volleys Fired 32 | 3 15 14 Largest 3 | 3 3 3 Hottest 105 | 90 90 105 Shots Fired 95 | 9 44 42 Gun 81 | 9 44 28 Cannon 14 | . . 14 Launcher . | . . . Special . | . . . Kinetic 64 | 6 30 28 Thermal 31 | 3 14 14 Explosive . | . . . Electromagnetic . | . . . Robot Hit Streak 8 | 2 8 7 Robot Miss Streak 3 | 1 3 3 Penetration Max . | . . . Secondary Targets . | . . . Shots Hit Robots 51 | 4 25 22 Core Hits 22 | 3 9 10 Critical Hits . | . . . Critical Kills . | . . . Critical Parts Destroyed . | . . . Melee Attacks . | . . . Impact . | . . . Slashing . | . . . Piercing . | . . . Sneak Attacks . | . . . Combat Hostiles . | . . . Follow-up Attacks . | . . . Damage Inflicted 558 | 49 292 217 Guns 505 | 49 292 164 Cannons 53 | . . 53 Explosions . | . . . Melee . | . . . Ramming . | . . . Kinetic 271 | 12 153 106 Thermal 287 | 37 139 111 Explosive . | . . . Electromagnetic . | . . . Impact . | . . . Slashing . | . . . Piercing . | . . . Highest Corruption . | . . . Average Corruption . | . . . Corruption Purged . | . . . Overload Shots . | . . . Overflow Damage . | . . . Projectiles . | . . . Explosions . | . . . Melee . | . . . Knockbacks 1 | . . 1 Impact . | . . . Kinetic 1 | . . 1 Secondary . | . . . Self-Inflicted Damage . | . . . Shots . | . . . Rammed . | . . . Targets Rammed . | . . . Kicked . | . . . Crushed . | . . . Highest Temperature 96 | 18 60 96 Average Temperature 28 | 9 22 38 Received Heat Transfer 42 | . 42 . Siege Activations . | . . . Robots Corrupted . | . . . Combat Hostiles . | . . . Parts Fried . | . . . Impact Corruptions . | . . . Robots Melted . | . . . Combat Hostiles . | . . . Parts Melted . | . . . Heat Transferred 851 | 111 407 333 Parts Sabotaged . | . . . Parts Stolen . | . . . Parts Stripped . | . . . Power Chain Reactions . | . . . Missiles Intercepted . | . . . Alert | -11 -10 -10 ------- Run | Scr Mat Min Peak Influence 187 | 10 147 187 Average Influence 109 | 4 77 179 Maximum Alert Level . | . . . Low Security (%) 100 | 100 100 100 Level 1 . | . . . Level 2 . | . . . Level 3 . | . . . Level 4 . | . . . Level 5 . | . . . High Security . | . . . Max Security . | . . . Squads Dispatched 2 | . 2 . Investigation . | . . . Extermination . | . . . Reinforcement 2 | . 2 . Assault . | . . . Garrison . | . . . Intercept . | . . . Construction Impeded . | . . . Haulers Reinforced . | . . . Stealth | -11 -10 -10 --------- Run | Scr Mat Min Distress Signals 1 | . . 1 Communications Jammed . | . . . Distress Signals . | . . . Times Spotted 24 | . 7 17 Peak Tracking Total 11 | . 2 11 Tactical Retreats 1 | . . 1 Traps | -11 -10 -10 ------- Run | Scr Mat Min Traps Triggered 1 | . 1 . Indirectly . | . . . Trap Hack Attempts . | . . . Triggered . | . . . Disarmed . | . . . Reprogrammed . | . . . Reused . | . . . Traps Extracted . | . . . Installed . | . . . Triggered . | . . . Machines | -11 -10 -10 ---------- Run | Scr Mat Min Machines Disabled 2 | . . 2 Max in Single Turn 1 | . . 1 Machines Sabotaged . | . . . Garrisons Compromised . | . . . Overloaded Fab Kills . | . . . Fab Network Shutdowns . | . . . Hacking | -11 -10 -10 --------- Run | Scr Mat Min Machines Accessed 3 | . 2 1 Terminals 3 | . 2 1 Fabricators . | . . . Repair Stations . | . . . Recycling Units . | . . . Scanalyzers . | . . . Garrison Access . | . . . Total Hacks 12 | . 10 2 Successful 6 | . 6 . Failed 6 | . 4 2 Catastrophic 3 | . 1 2 Database Lockouts . | . . . Manual 9 | . 7 2 Terminals 12 | . 10 2 Fabricators . | . . . Repair Stations . | . . . Recycling Units . | . . . Scanalyzers . | . . . Garrison Access . | . . . Terminal Hacks 6 | . 6 . Branch Access Points 1 | . 1 . Emergency Access Points 1 | . 1 . Terminal Index 2 | . 2 . Locate Traps 1 | . 1 . Zone Layout 1 | . 1 . Fabricator Hacks . | . . . Repair Station Hacks . | . . . Recycling Unit Hacks . | . . . Scanalyzer . | . . . Garrison Access Hacks . | . . . Unauthorized Hacks . | . . . Terminals . | . . . Fabricators . | . . . Repair Stations . | . . . Recycling Units . | . . . Scanalyzers . | . . . Garrison Access . | . . . Data Cores Recovered . | . . . Used . | . . . Hacking Detections 3 | . 2 1 Full Trace Events 1 | . 1 . Feedback Events . | . . . Feedback Blocked . | . . . Robot Schematics Acquired . | . . . Robots Built . | . . . Matter . | . . . Time . | . . . Total Robot Build Rating . | . . . Part Schematics Acquired . | . . . Parts Built . | . . . Matter . | . . . Time . | . . . Total Part Build Rating . | . . . Parts Repaired . | . . . Time . | . . . Parts Recycled . | . . . Recycled Matter . | . . . Retrieved Matter . | . . . Retrieved Components . | . . . Parts Scanalyzed . | . . . Part Schematics Acquired . | . . . Parts Damaged . | . . . Bothacking | -11 -10 -10 ------------ Run | Scr Mat Min Used RIF Installer . | . . . Robots Hacked . | . . . Non-combat . | . . . Combat . | . . . Robot Hacks Applied . | . . . Relay Couplers Released . | . . . Robots Rewired . | . . . Allies Hacked . | . . . Hacks Repelled . | . . . Allies | -11 -10 -10 -------- Run | Scr Mat Min Total Allies . | . . . Largest Group . | . . . Highest-Rated Group . | . . . Highest-Rated Ally . | . . . Total Orders . | . . . Ally Attacks . | . . . Total Damage . | . . . Kills . | . . . Allies Corrupted . | . . . Allies Melted . | . . . Intel | -11 -10 -10 ------- Run | Scr Mat Min Robot Analysis Total . | . . . Derelict Logs Recovered . | . . . Drone Launches . | . . . Drone Recoveries . | . . . Exploration | -11 -10 -10 ------------- Run | Scr Mat Min Turns Passed 585 | 64 293 228 Spaces Moved 435 | 49 161 225 Core 1 | 1 . . Treads . | . . . Legs . | . . . Wheels 434 | 48 161 225 Hover . | . . . Flight . | . . . Fastest Speed 50 | 50 80 80 Average Speed 80 | 86 80 80 Slowest Speed 100 | 100 80 80 Overloaded Moves . | . . . Propulsion Burnouts . | . . . Robots Hopped . | . . . Cave-ins Triggered . | . . . Exploration Rate (%) 29 | 3 36 49 Regions Visited 2 Branch Regions 1 Pre-discovered Areas . | . . . Known Exits Taken 1 | . 1 . Unknown Exits Taken 1 | 1 . . Scrap Searched . | . . . Spaces Dug . | . . . Terrain Destroyed . | . . . Melee . | . . . Projectile . | . . . AOE . | . . . Actions | -11 -10 -10 --------- Run | Scr Mat Min Total 595 | 60 292 243 Wait 104 | . 104 . Move 433 | 48 160 225 Hop . | . . . Pick Up . | . . . Fast Attach 16 | 8 7 1 Attach . | . . . Detach . | . . . Swap . | . . . Drop 5 | 1 3 1 Fire 32 | 3 15 14 Melee . | . . . Ram . | . . . Kick . | . . . Crush . | . . . Escape Stasis . | . . . Rewire . | . . . Trap . | . . . Miscellaneous 5 | . 3 2 Route ------- -11/Scrapyard -10/Materials (discovered 2 exits: *Min x2) -10/Mines History --------- Turn | Location | Event 1 | -11/Scrapyard | Upgraded with Power slot (x1) 1 | -11/Scrapyard | Upgraded with Propulsion slot (x1) 1 | -11/Scrapyard | Upgraded with Utility slot (x1) 1 | -11/Scrapyard | Upgraded with Weapon slot (x2) 24 | -11/Scrapyard | Discovered new exit (range 16) 65 | -11/Scrapyard | Entered Materials 76 | -10/Materials | Discovered new exit (range 12) 76 | -10/Materials | Identified exit to Mines 306 | -10/Materials | Build established: Gunner 358 | -10/Materials | Entered Mines 377 | -10/Mines | Assembled infested the area 382 | -10/Mines | Assisted by a Guerilla fighting off Assembled 416 | -10/Mines | Core integrity fell below 50% 574 | -10/Mines | Core integrity fell below 20% 586 | -10/Mines | Destroyed by as-48953 with Assembled Heavy Rifle Last Messages --------------- 00428_ R-06 Scavenger collects Welding Torch. 00429_ U-05 Engineer lays Concrete. 00430_ K-01 Serf destroyed. 00430_ U-05 Engineer builds a Wall. 00430_ U-05 Engineer lays Concrete. 00431_ U-05 Engineer destroyed. 00431_ D-53 Grenadier destroyed. 00432_ The unstable cave ceiling collapses. 00432_ Destroyed Asb. Hover Unit. 00432_ as-66364 knocked back. 00435_ The unstable cave ceiling collapses. 00447_ as-59329 destroyed. 00487_ Connecting with Terminal... 00504_ Dropped Wheel. 00505_ Acquired Wheel. 00506_ Acquired 10 matter. 00539_ Acquired 12 matter. 00540_ Extracted 17 matter. 00578_ as-92624 destroyed. 00585_ as-39562 destroyed. Map ----- +----------------------------------------------------+ | #??# #?# """ #?????????????????????????#??????? | | #??# #?# """ #????????????????????????????????? | | #### ### """ #????????????????????????????????? | | #??#?????????????????????????????? | | ####### """ #?? ?????????????????????????????? | | #?????# """ #?? ?????????????????????????????? | | #?????# """ #?# #????????????????????????????? | | #?????# #?# #????####????????????????????? | | ###???###T######?# #???? #????????????????????? | | #?????###??????# #???? #????????????????????? | | ## #??????????????# #????# #????????????????????? | | ## #####??####????# #????# #????????????????????? | | #?## ##??## ##???# #????????????????????? | | ##=### ### #### *%###?# #????????????????????? | | ?# #?# ## ! ### #????????????????????? | | ?# #?#!## = ##$ #????????????????????? | | ?#!#?# %= ##???????????????????? | | ##=#?#### | #???????????????????? | | ##???# ##??????????????????? | | ##??## ### ## #??????????????????? | | ##??#######?## ###### #??????????????????? | | #???????????####????# a #??????????????????? | | #??????????????????## #??????????????????? | | #?????????########## #??????????????????? | | ##?????????# % #??????????????????? | | ##???? % @ ##??????????????????? | | # ##????? ## ##???????????????????? | | ####????????? ?????## #????????????????????? | | ????????????????????## ##????????????????????? | | ?????????????????????#######?????????????????????? | | ?????????????????????????????????????????????????? | | ?????????????????????????????????????????????????? | | | | | | | | | | | | | | | | | | | | | | | | | | | | | | | | | | | | | +----------------------------------------------------+ Best States ------------- Heat Dissipation 37 Energy Generation 15 Energy Capacity 400 Matter Stores 300 Matter Capacity 400 Sight Range 16 Terrain Scan Density 10 Evasion (%) 44 Targeting Accuracy 5 Item Schematics ----------------- None Robot Schematics ------------------ None Fabricated ------------ Nothing Alien Tech Used ----------------- None Achievements -------------- None Challenges ------------ None RPGLIKE | -11 -10 -10 --------- Run | Scr Mat Min Levels Raised . | . . . XP Earned 4465 | 3000 465 1000 XP Spent 2980 | 2980 . . Upgrades 9 | 9 . . Power Slot 1 | 1 . . Propulsion Slot 1 | 1 . . Utility Slot 1 | 1 . . Weapon Slot 2 | 2 . . Core Integrity 2 | 2 . . Heat Dissipation 2 | 2 . . Protomatter Created 88 | . 74 14 Integrity Restored 92 | . 62 30 Core 70 | . 40 30 Parts 22 | . 22 . Protomatter Decayed 52 | . 52 . Game ------ Seed HeartOpticalCoupler Manual? 0 Play Time 00:11:10 Cumulative 39.7 hours Start 2020.01.19 @ 15:57:02 End 2020.01.19 @ 16:05:19 Sessions 1 Manual Loads 0 Difficulty Rogue Special Mode Winter2019/RPGLIKE Game No. 63 Rogue 63 Adventurer 0 Explorer 0 Win Type - Total 1 Types 1/0/0/0/0/0/0 Lore% 29 Gallery% 35 Achievement% 29 Wizard Run 0 Options --------- ASCII 0 Keyboard 0 Movement Mouse Keybinds 0 Fullscreen 1 Font 18/SmallcapsGlow Map View 76x50 Tactical HUD 1 Map Filters NONE Filters NONE Steam 1 RUN: c0e5450c-ef0f-4988-84d0-744b011feb55